bitfinex/quotes_SOLUSD_20220118
["timestamp","ask_amount","ask_price","bid_price","bid_amount"]
[1642500553295,19.8245,137.47,137.39,10.48]
[1642500553895,10.918,137.43,137.36,24.4513]
[1642500554095,5.35210021,137.42,137.36,24.4513]
[1642500554295,5.60210021,137.42,137.36,24.4513]
[1642500554500,14.30110021,137.42,137.36,24.4513]
[1642500555397,25.21950021,137.42,137.36,24.4513]
[1642500556097,25.21950021,137.42,137.35,2.0733824]
[1642500556297,31.21950021,137.42,137.35,2.0733824]
[1642500556697,72.61,137.41,137.35,2.0733824]
[1642500556897,51.0,137.38,137.32,4.12680913]
[1642500557102,2.912,137.37,137.32,4.12680913]
[1642500557297,9.162,137.37,137.32,4.12680913]
[1642500557698,9.162,137.37,137.3,343.4028277]
[1642500557699,9.162,137.37,137.3,337.22064778]
[1642500557897,3.8773921,137.36,137.3,337.22064778]
[1642500558099,2.912,137.35,137.3,337.22064778]
[1642500558299,14.0862,137.35,137.3,337.22064778]
[1642500558498,14.0862,137.35,137.29,4.12680913]
[1642500558899,14.0862,137.35,137.28,10.48]
[1642500560700,13.8362,137.35,137.28,10.48]
[1642500561001,2.912,137.36,137.28,11.94359333]
[1642500561202,36.4089,137.4,137.29,0.25]
[1642500561203,39.3209,137.4,137.29,0.25]
[1642500561401,39.3209,137.4,137.29,10.73]
[1642500561402,8.912,137.4,137.29,10.73]
[1642500561601,8.912,137.4,137.3,1.46359333]
[1642500561802,8.912,137.4,137.31,10.48]
[1642500562001,19.8326,137.4,137.31,10.48]
[1642500562305,19.8326,137.4,137.32,1.46359333]
[1642500562503,19.8326,137.4,137.33,39.13994075]
[1642500564303,0.25,137.39,137.33,39.13994075]
[1642500564911,2.912,137.4,137.33,39.13994075]
[1642500565107,4.07755405,137.44,137.34,10.73]
[1642500565407,10.07755405,137.44,137.34,16.99]
[1642500565605,4.07755405,137.44,137.35,1.46359333]
[1642500565806,10.07755405,137.44,137.36,10.73]
[1642500566006,10.07755405,137.44,137.36,49.52499482]
[1642500566205,10.07755405,137.44,137.36,55.78499482]
[1642500566405,6.0,137.44,137.36,66.70019482]
[1642500566806,0.25,137.43,137.36,66.70019482]
[1642500567007,0.25,137.44,137.36,66.70019482]
[1642500567406,11.1668,137.44,137.36,16.74]
[1642500567610,2.911,137.43,137.36,16.48]
[1642500567835,0.25,137.42,137.36,10.48]
[1642500568007,2.911,137.41,137.36,10.48]
[1642500568306,0.25,137.4,137.36,10.48]
[1642500568507,2.911,137.39,137.36,10.48]
[1642500568708,2.911,137.42,137.36,10.48]
[1642500569007,6.0,137.43,137.36,10.48]
[1642500569308,0.25,137.42,137.36,10.74]
[1642500569507,0.25,137.42,137.36,60.36690614]
[1642500570211,2.911,137.45,137.36,71.28260614]
[1642500570410,2.911,137.46,137.37,0.25]
[1642500570609,2.911,137.46,137.38,10.48]
[1642500570809,2.911,137.46,137.39,39.4628077]
[1642500571011,2.911,137.46,137.4,10.48]
[1642500571209,6.98755405,137.49,137.4,10.48]
[1642500571414,6.98755405,137.49,137.41,11.1591]
[1642500571615,6.98755405,137.49,137.42,10.48]
[1642500571811,6.98755405,137.49,137.42,57.47374153]
[1642500572211,0.25,137.48,137.42,16.48]
[1642500572412,2.91,137.47,137.42,16.48]
[1642500572812,2.91,137.47,137.42,10.48]
[1642500573210,4.56818507,137.47,137.42,10.48]
[1642500573410,15.48258507,137.47,137.42,10.48]
[1642500573610,21.48258507,137.47,137.36,4.12680913]
[1642500573813,0.25,137.46,137.36,4.12680913]
[1642500574014,2.91,137.45,137.36,4.12680913]
[1642500574413,0.25,137.44,137.37,43.18583897]
[1642500574619,8.911,137.45,137.37,53.66583897]
[1642500574815,2.91,137.49,137.37,59.92583897]
[1642500575217,8.91,137.49,137.37,59.66583897]
[1642500575419,4.07755405,137.46,137.37,59.92583897]
[1642500575615,2.91,137.45,137.37,59.92583897]
[1642500575816,4.07755405,137.46,137.38,0.25]
[1642500576016,4.07755405,137.46,137.4,10.9121]
[1642500576215,0.25,137.45,137.4,10.9121]
[1642500576414,12.98755405,137.49,137.41,10.48]
[1642500576614,0.25,137.48,137.42,40.92424654]
[1642500576814,0.25,137.48,137.42,47.18424654]
[1642500577615,0.25,137.48,137.42,40.92424654]
[1642500577814,3.16,137.5,137.42,40.92424654]
[1642500578216,9.16,137.5,137.42,40.92424654]
[1642500578415,9.16,137.5,137.43,10.9092]
[1642500578615,6.25,137.5,137.43,21.3892]
[1642500578815,0.25,137.5,137.43,21.3892]
[1642500579017,6.25,137.5,137.43,21.3892]
[1642500579215,0.25,137.5,137.43,21.3892]
[1642500579615,0.25,137.5,137.44,0.25]
[1642500579815,4.07755405,137.52,137.45,10.9074]
[1642500580016,4.07755405,137.52,137.46,10.48]
[1642500580216,4.07755405,137.53,137.47,45.88262419]
[1642500580519,4.07755405,137.53,137.48,10.48]
[1642500580924,4.07755405,137.53,137.48,16.48]
[1642500581119,4.07755405,137.53,137.48,10.48]
[1642500581320,2.908,137.54,137.48,10.48]
[1642500581520,0.25,137.53,137.48,10.48]
[1642500581718,2.908,137.52,137.48,10.48]
[1642500581924,2.908,137.52,137.44,10.48]
[1642500582120,0.25,137.51,137.44,10.48]
[1642500582319,3.158,137.51,137.44,16.48]
[1642500582519,3.158,137.51,137.44,53.29236535]
[1642500583620,3.158,137.51,137.44,53.55236535]
[1642500584120,3.158,137.51,137.44,53.29236535]
[1642500584322,3.158,137.51,137.44,16.48]
[1642500584623,3.158,137.51,137.44,10.48]
[1642500584822,14.0691,137.51,137.44,10.48]
[1642500585822,13.8191,137.51,137.44,52.15066163]
[1642500586626,13.8191,137.51,137.44,10.48]
[1642500587422,11.162,137.5,137.44,10.48]
[1642500587625,29.84709239,137.49,137.44,10.48]
[1642500587823,0.25,137.48,137.44,10.48]
[1642500588822,0.25,137.48,137.41,10.48]
[1642500589023,2.91,137.47,137.41,10.48]
[1642500589229,0.25,137.46,137.41,16.48]
[1642500589726,0.25,137.46,137.41,10.48]
[1642500590452,0.25,137.47,137.41,10.48]
[1642500591853,0.25,137.47,137.42,39.52796752]
[1642500592255,0.25,137.47,137.43,10.48]
[1642500592454,2.91,137.5,137.43,10.48]
[1642500593656,2.908,137.51,137.43,10.48]
[1642500593855,3.158,137.51,137.43,33.9726]
[1642500594256,3.158,137.51,137.44,0.25]
[1642500594456,0.25,137.51,137.43,33.9726]
[1642500594658,2.908,137.5,137.43,33.9726]
[1642500594855,0.25,137.49,137.43,33.9726]
[1642500596058,0.25,137.49,137.44,2.58089997]
[1642500596659,27.3477447,137.5,137.44,2.58089997]
[1642500597258,0.25,137.5,137.44,2.58089997]
[1642500597858,2.908,137.49,137.44,2.58089997]
[1642500598258,0.25,137.48,137.44,2.58089997]
[1642500598458,2.908,137.47,137.44,2.58089997]
[1642500598662,2.908,137.47,137.41,10.48]
[1642500598663,6.06439994,137.46,137.39,2.58089997]
[1642500598863,2.91,137.45,137.39,13.06089997]
[1642500599259,0.25,137.44,137.39,13.06089997]
[1642500601461,2.91,137.43,137.39,13.06089997]
[1642500601862,0.25,137.42,137.39,13.06089997]
[1642500602161,6.06439994,137.41,137.39,13.06089997]
[1642500602963,0.25,137.42,137.39,13.06089997]
[1642500603164,0.25,137.42,137.39,58.67296426]
[1642500603364,0.25,137.44,137.39,58.67296426]
[1642500603866,2.911,137.46,137.39,58.67296426]
[1642500603867,0.25,137.45,137.39,58.67296426]
[1642500604265,0.25,137.45,137.39,58.93296426]
[1642500604465,0.25,137.45,137.39,13.06089997]
[1642500604666,0.25,137.45,137.39,13.32089997]
[1642500605472,2.91,137.44,137.39,13.32089997]
[1642500605869,0.25,137.43,137.39,13.32089997]
[1642500606469,0.25,137.43,137.39,13.06089997]
[1642500606866,0.25,137.44,137.39,13.06089997]
[1642500607066,0.25,137.44,137.39,13.32089997]
[1642500607768,0.25,137.44,137.39,19.32089997]
[1642500607967,0.25,137.44,137.39,19.06089997]
[1642500608166,0.25,137.44,137.39,13.06089997]
[1642500608566,0.25,137.44,137.39,2.58089997]
[1642500609268,2.91,137.43,137.39,2.58089997]
[1642500609666,2.91,137.43,137.36,4.12680913]
[1642500609667,0.25,137.42,137.36,4.12680913]
[1642500609866,0.25,137.42,137.38,2.58089997]
[1642500610470,0.25,137.42,137.38,45.40211293]
[1642500610866,0.25,137.43,137.38,45.40211293]
[1642500611566,0.25,137.43,137.38,2.58089997]
[1642500612168,0.25,137.43,137.36,2.58089997]
[1642500612366,0.25,137.43,137.36,51.32914863]
[1642500613167,0.25,137.43,137.36,57.32914863]
[1642500613567,0.25,137.43,137.36,57.58914863]
[1642500613769,0.25,137.43,137.36,59.05712434]
[1642500614167,0.25,137.44,137.36,58.79712434]
[1642500614370,0.25,137.44,137.36,81.37374863]
[1642500614566,0.25,137.45,137.36,92.28794863]
[1642500614767,0.25,137.45,137.36,93.75592434]
[1642500614768,3.11448924,137.45,137.36,93.75592434]
[1642500615468,3.11448924,137.45,137.36,92.28794863]
[1642500615869,9.11448924,137.45,137.36,92.28794863]
[1642500616067,9.11448924,137.45,137.36,81.37374863]
[1642500616468,2.911,137.44,137.36,81.37374863]
[1642500616871,0.25,137.43,137.36,36.84549997]
[1642500617069,2.911,137.42,137.36,36.84549997]
[1642500617269,0.25,137.41,137.36,36.84549997]
[1642500617468,0.25,137.41,137.36,2.58089997]
[1642500617868,2.911,137.4,137.36,2.58089997]
[1642500618070,2.911,137.4,137.34,2.58089997]
[1642500618269,0.25,137.39,137.34,2.58089997]
[1642500619471,2.911,137.38,137.34,2.58089997]
[1642500619772,0.25,137.37,137.34,2.58089997]
[1642500620069,6.06439994,137.36,137.34,2.58089997]
[1642500621271,6.06439994,137.36,137.33,2.58089997]
[1642500621470,2.912,137.42,137.33,8.83089997]
[1642500621670,2.912,137.42,137.34,10.48]
[1642500621869,4.07755405,137.45,137.35,0.25]
[1642500621870,2.911,137.44,137.35,0.25]
[1642500622072,2.911,137.44,137.35,24.2413]
[1642500622273,34.91085247,137.43,137.35,24.2413]
[1642500622571,2.911,137.42,137.35,23.9913]
[1642500622775,3.161,137.42,137.34,10.48]
[1642500623471,14.0794,137.42,137.34,10.48]
[1642500623672,20.0794,137.42,137.34,55.89334056]
[1642500624273,20.0794,137.42,137.35,2.58089997]
[1642500629379,20.0794,137.42,137.33,26.39449997]
[1642500629783,20.0794,137.42,137.34,38.32859229]
[1642500633213,20.0794,137.42,137.35,2.58089997]
[1642500638420,20.0794,137.42,137.33,23.8136]
[1642500638622,20.0794,137.42,137.34,2.58089997]
[1642500640224,65.0,137.4,137.28,343.75585974]
[1642500640520,1.59058355,137.32,137.28,343.75585974]
[1642500640721,2.912,137.31,137.27,6.18217992]
[1642500641023,3.00917606,137.3,137.22,6.2229093]
[1642500641223,2.914,137.29,137.22,6.2229093]
[1642500641423,10.48,137.28,137.22,6.2229093]
[1642500641621,75.524,137.27,137.16,10.30363319]
[1642500641823,83.09,137.26,137.16,10.30363319]
[1642500642022,2.915,137.25,137.09,0.8843627]
[1642500642221,10.48,137.24,137.09,0.8843627]
[1642500642423,2.916,137.23,137.09,73.4943627]
[1642500642724,10.48,137.22,137.11,72.61]
[1642500643122,0.25,137.21,137.11,78.87]
[1642500643322,0.25,137.21,137.11,78.61]
[1642500643723,0.25,137.21,137.11,89.5437]
[1642500643923,0.25,137.21,137.14,42.31348336]
[1642500644124,0.25,137.21,137.15,72.61]
[1642500644324,19.395,137.26,137.15,78.61]
[1642500644524,19.395,137.26,137.16,0.25]
[1642500644725,16.48,137.26,137.16,0.25]
[1642500644924,16.48,137.26,137.16,11.1798]
[1642500644925,10.48,137.26,137.16,11.1798]
[1642500645125,2.915,137.29,137.18,40.22006515]
[1642500645327,8.915,137.29,137.19,72.86]
[1642500645526,2.915,137.29,137.19,72.86]
[1642500645728,8.915,137.29,137.19,6.51]
[1642500646126,19.8443,137.29,137.19,6.51]
[1642500646524,13.8443,137.29,137.19,6.51]
[1642500646827,13.8443,137.29,137.19,0.51]
[1642500647026,13.8443,137.29,137.19,6.51]
[1642500647227,2.915,137.29,137.2,72.61]
[1642500647626,2.915,137.29,137.21,36.96391771]
[1642500647830,0.25,137.28,137.21,37.22391771]
[1642500648426,0.25,137.28,137.21,0.26]
[1642500648726,0.25,137.28,137.17,6.0]
[1642500648927,13.394,137.27,137.13,49.7392]
[1642500649126,13.394,137.27,137.15,25.0534]
[1642500649329,0.25,137.26,137.15,31.0534]
[1642500649530,0.25,137.26,137.17,10.9292]
[1642500650030,0.25,137.26,137.16,4.15102271]
[1642500650228,2.915,137.25,137.16,4.15102271]
[1642500650728,0.25,137.24,137.16,4.15102271]
[1642500651228,0.25,137.24,137.16,45.32665123]
[1642500651832,0.25,137.24,137.16,41.17562852]
[1642500652031,0.25,137.24,137.17,0.25]
[1642500652231,0.25,137.24,137.16,41.43562852]
[1642500652432,2.915,137.23,137.16,0.26]
[1642500652631,2.915,137.23,137.14,4.41102271]
[1642500652832,0.25,137.22,137.14,0.26]
[1642500653233,0.25,137.22,137.14,0.25]
[1642500653833,0.25,137.23,137.14,0.25]
[1642500654034,0.25,137.23,137.14,72.86]
[1642500654233,8.915,137.24,137.14,79.12]
[1642500654434,10.48,137.28,137.14,89.6]
[1642500654733,10.48,137.28,137.14,91.06487658]
[1642500654734,3.165,137.27,137.14,91.06487658]
[1642500654933,2.915,137.27,137.14,101.99647658]
[1642500655134,2.915,137.29,137.14,101.99647658]
[1642500655336,2.915,137.34,137.16,130.97]
[1642500655537,10.48,137.37,137.17,10.48]
[1642500655538,2.914,137.36,137.17,10.48]
[1642500655735,2.914,137.36,137.18,157.2202]
[1642500655934,6.8980417,137.36,137.2,72.61]
[1642500656134,10.9247,137.34,137.22,10.9248]
[1642500656336,2.912,137.33,137.23,0.25]
[1642500656735,8.912,137.33,137.23,0.25]
[1642500656935,0.25,137.32,137.22,53.18400139]
[1642500657138,2.912,137.31,137.22,53.18400139]
[1642500657338,0.25,137.3,137.22,53.18400139]
[1642500657540,2.914,137.29,137.22,53.18400139]
[1642500657739,0.25,137.3,137.23,0.25]
[1642500657937,0.25,137.3,137.24,10.48]
[1642500658140,0.25,137.3,137.25,35.72665994]
[1642500658337,0.25,137.3,137.25,35.97665994]
[1642500658537,0.25,137.34,137.25,0.25]
[1642500658738,2.912,137.33,137.25,0.25]
[1642500659138,0.25,137.32,137.25,0.25]
[1642500659740,0.25,137.32,137.24,0.25]
[1642500660341,0.25,137.32,137.23,43.1952339]
[1642500660539,2.912,137.31,137.22,10.48]
[1642500660742,0.25,137.3,137.22,10.48]
[1642500661142,0.25,137.3,137.23,0.25]
[1642500661341,0.25,137.3,137.22,21.4052]
[1642500661542,0.25,137.3,137.23,36.19432165]
[1642500661742,0.25,137.31,137.23,42.44432165]
[1642500661942,0.25,137.31,137.24,10.48]
[1642500662345,0.25,137.33,137.25,0.25]
[1642500662946,0.25,137.33,137.24,10.48]
[1642500663144,2.912,137.32,137.24,10.48]
[1642500663347,0.25,137.31,137.24,10.48]
[1642500666376,0.25,137.31,137.2,35.2959]
[1642500666576,2.914,137.3,137.21,10.48]
[1642500666776,0.25,137.29,137.21,10.48]
[1642500666979,2.914,137.28,137.21,10.48]
[1642500667378,0.25,137.27,137.19,49.49984938]
[1642500667581,0.25,137.27,137.19,49.74984938]
[1642500668381,2.914,137.29,137.19,56.00984938]
[1642500668382,0.25,137.28,137.19,56.00984938]
[1642500668682,0.25,137.28,137.2,10.48]
[1642500668880,0.25,137.3,137.21,72.86]
[1642500669082,0.25,137.3,137.22,123.72906856]
[1642500669282,0.25,137.31,137.23,0.25]
[1642500670282,8.914,137.32,137.23,0.25]
[1642500671585,0.25,137.31,137.23,0.25]
[1642500671986,0.25,137.31,137.23,10.73]
[1642500672284,0.25,137.31,137.23,16.99]
[1642500672686,0.25,137.31,137.23,16.74]
[1642500674190,0.25,137.31,137.23,16.48]
[1642500674390,2.912,137.3,137.23,16.48]
[1642500674789,0.25,137.29,137.23,16.48]
[1642500676393,0.25,137.29,137.24,36.32203832]
[1642500676790,0.25,137.32,137.24,42.32203832]
[1642500678392,13.8397,137.33,137.24,42.32203832]
[1642500678591,2.914,137.33,137.24,53.24573832]
[1642500678792,2.00886095,137.34,137.25,10.48]
[1642500679291,2.00886095,137.34,137.26,0.25]
[1642500679492,2.00886095,137.36,137.27,10.48]
[1642500679893,0.25,137.35,137.28,0.25]
[1642500680692,0.25,137.35,137.27,16.74]
[1642500680893,0.25,137.35,137.27,16.48]
[1642500681093,0.25,137.35,137.27,10.48]
[1642500681896,2.912,137.34,137.27,10.48]
[1642500682295,0.25,137.33,137.27,10.48]
[1642500683297,0.25,137.34,137.27,10.48]
[1642500685599,3.162,137.34,137.27,10.48]
[1642500685799,9.162,137.34,137.27,10.48]
[1642500687902,6.25,137.34,137.27,10.48]
[1642500688100,0.25,137.34,137.27,10.48]
[1642500688301,6.25,137.34,137.27,10.48]
[1642500688800,0.25,137.34,137.27,10.48]
[1642500689001,6.25,137.34,137.27,10.48]
[1642500689204,0.25,137.34,137.27,10.48]
[1642500689801,0.25,137.35,137.27,10.48]
[1642500690900,0.25,137.35,137.27,57.48169183]
[1642500691101,2.912,137.34,137.27,57.48169183]
[1642500691303,6.0,137.34,137.27,57.74169183]
[1642500691627,6.0,137.34,137.28,0.25]
[1642500691802,0.25,137.35,137.28,10.73]
[1642500692502,2.912,137.35,137.28,0.25]
[1642500692708,3.162,137.35,137.27,0.25]
[1642500692904,3.55738648,137.34,137.27,0.25]
[1642500693103,14.48208648,137.34,137.27,0.25]
[1642500693305,0.25,137.33,137.27,0.25]
[1642500697009,0.25,137.34,137.27,0.25]
[1642500697209,8.912,137.35,137.27,0.25]
[1642500697413,2.00886095,137.36,137.28,10.48]
[1642500697611,2.00886095,137.36,137.29,40.29002633]
[1642500697813,2.00886095,137.36,137.3,83.09]
[1642500698013,2.00886095,137.38,137.3,83.09]
[1642500698214,2.00886095,137.38,137.31,0.25]
[1642500698414,2.00886095,137.38,137.31,83.34]
[1642500698615,2.00886095,137.38,137.32,43.02558208]
[1642500698915,2.00886095,137.38,137.32,0.26]
[1642500699542,2.00886095,137.38,137.31,16.99]
[1642500699744,0.25,137.37,137.31,16.74]
[1642500700744,0.25,137.37,137.31,6.0]
[1642500700942,2.912,137.36,137.31,6.0]
[1642500701144,2.912,137.36,137.29,2.06956625]
[1642500701342,0.25,137.35,137.29,2.06956625]
[1642500701542,0.25,137.35,137.29,8.06956625]
[1642500702142,0.25,137.35,137.29,6.0]
[1642500702343,0.25,137.35,137.27,6.0]
[1642500702546,0.25,137.35,137.28,0.25]
[1642500702944,0.25,137.35,137.29,10.48]
[1642500703345,0.25,137.36,137.29,16.48]
[1642500704547,0.25,137.36,137.29,10.48]
[1642500706247,0.25,137.36,137.29,10.74]
[1642500706447,0.25,137.36,137.29,10.24]
[1642500707147,2.25886095,137.36,137.29,10.24]
[1642500707347,2.25886095,137.36,137.29,9.98]
[1642500708752,2.25886095,137.36,137.3,0.25]
[1642500709549,0.25,137.36,137.3,0.25]
[1642500712665,2.25886095,137.36,137.29,0.25]
[1642500714355,0.25,137.36,137.29,0.25]
[1642500716459,0.25,137.36,137.3,10.48]
[1642500716668,0.25,137.36,137.31,72.61]
[1642500716959,2.00886095,137.37,137.32,10.48]
[1642500717159,2.00886095,137.37,137.33,36.76546971]
[1642500717359,5.81504634,137.43,137.34,10.73]
[1642500717562,5.81504634,137.43,137.35,10.9152]
[1642500717759,5.81504634,137.43,137.36,83.34]
[1642500718161,25.5379,137.45,137.36,89.6]
[1642500718363,0.25,137.44,137.36,89.6]
[1642500718560,25.5379,137.45,137.36,89.6]
[1642500718759,4.39800932,137.46,137.37,45.62810627]
[1642500718959,4.39800932,137.46,137.38,83.09]
[1642500719159,324.78324872,137.47,137.38,83.34]
[1642500719360,324.78324872,137.47,137.38,91.07058744]
[1642500719559,5.81504634,137.47,137.39,1.47058744]
[1642500719759,5.81504634,137.47,137.4,10.73]
[1642500719959,5.81504634,137.47,137.4,56.66780632]
[1642500720159,5.81504634,137.47,137.4,62.92780632]
[1642500720459,4.14489351,137.49,137.4,62.92780632]
[1642500720659,4.14489351,137.49,137.41,72.61]
[1642500720863,4.14489351,137.49,137.42,10.73]
[1642500721259,4.14489351,137.49,137.42,147.96]
[1642500721460,4.14489351,137.49,137.43,38.09421443]
[1642500721659,4.14489351,137.49,137.44,10.48]
[1642500721863,4.14489351,137.51,137.44,16.99]
[1642500722263,0.25,137.5,137.44,16.73]
[1642500722465,3.158,137.5,137.44,16.48]
[1642500723663,0.25,137.5,137.44,16.48]
[1642500723863,0.25,137.51,137.44,16.48]
[1642500724663,4.14450098,137.5,137.44,16.48]
[1642500724864,4.14450098,137.5,137.45,0.25]
[1642500725064,4.14450098,137.5,137.46,10.48]
[1642500725264,4.14450098,137.5,137.47,0.25]
[1642500725467,2.908,137.55,137.48,10.48]
[1642500725668,2.908,137.55,137.49,44.23356815]
[1642500726268,0.25,137.54,137.49,44.23356815]
[1642500726469,4.39347971,137.54,137.49,44.23356815]
[1642500726678,4.39347971,137.54,137.48,10.48]
[1642500726870,2.908,137.53,137.46,10.48]
[1642500727269,0.25,137.52,137.46,10.48]
[1642500727471,2.908,137.51,137.46,10.48]
[1642500727670,3.158,137.52,137.46,55.53368064]
[1642500727871,4.14347971,137.53,137.47,0.25]
[1642500728070,4.14347971,137.53,137.48,10.48]
[1642500728270,4.14347971,137.53,137.48,10.74]
[1642500728972,2.908,137.55,137.48,10.74]
[1642500729190,0.25,137.54,137.48,10.48]
[1642500729681,2.908,137.53,137.48,10.48]
[1642500729980,0.25,137.52,137.48,10.48]
[1642500731287,4.39383551,137.52,137.45,16.48]
[1642500731487,2.908,137.51,137.4,10.48]
[1642500731691,10.9123,137.5,137.4,10.48]
[1642500731885,2.91,137.49,137.4,10.48]
[1642500732286,0.25,137.48,137.41,37.06836132]
[1642500732899,0.25,137.48,137.42,10.48]
[1642500734202,4.14383551,137.49,137.43,0.25]
[1642500734399,4.14383551,137.49,137.44,10.48]
[1642500734600,4.14383551,137.49,137.45,48.44808124]
[1642500734800,8.28812368,137.51,137.45,59.43808124]
[1642500735299,0.25,137.5,137.45,10.48]
[1642500735601,3.158,137.5,137.41,10.48]
[1642500735800,3.158,137.5,137.41,16.48]
[1642500736000,3.158,137.5,137.41,10.48]
[1642500736202,0.25,137.5,137.42,47.85122731]
[1642500736405,4.39383551,137.5,137.43,10.48]
[1642500736805,4.39383551,137.5,137.44,0.25]
[1642500736806,4.14383551,137.5,137.44,0.25]
[1642500737005,4.14383551,137.5,137.45,10.48]
[1642500737206,4.14383551,137.52,137.46,39.14307181]
[1642500737505,4.14383551,137.52,137.47,10.48]
[1642500737907,4.14383551,137.52,137.48,0.25]
[1642500738105,8.28741888,137.53,137.48,0.25]
[1642500739305,8.28741888,137.53,137.47,10.48]
[1642500739507,0.25,137.52,137.46,111.75307181]
[1642500739706,0.25,137.52,137.46,112.01307181]
[1642500739907,4.39383551,137.52,137.46,112.01307181]
[1642500740306,4.39383551,137.52,137.45,10.48]
[1642500740509,4.39383551,137.52,137.42,10.48]
[1642500740712,2.908,137.51,137.42,10.48]
[1642500740908,10.9124,137.5,137.42,10.48]
[1642500741110,2.908,137.49,137.42,10.48]
[1642500741313,0.25,137.48,137.42,10.48]
[1642500741609,2.91,137.47,137.42,10.48]
[1642500741811,0.25,137.46,137.42,10.48]
[1642500743008,3.16,137.47,137.42,10.48]
[1642500743408,3.16,137.47,137.39,60.11332474]
[1642500743609,3.16,137.47,137.39,66.37332474]
[1642500744410,14.0745,137.47,137.39,66.37332474]
[1642500744712,14.0745,137.47,137.4,0.25]
[1642500744910,10.9145,137.47,137.4,0.25]
[1642500745318,4.14383551,137.48,137.4,0.25]
[1642500745514,4.14383551,137.48,137.41,10.48]
[1642500745813,10.9135,137.48,137.41,10.74]
[1642500746215,4.14383551,137.49,137.41,83.35]
[1642500746413,4.14383551,137.49,137.42,72.86]
[1642500746617,4.14383551,137.49,137.43,10.48]
[1642500746814,4.14383551,137.49,137.44,43.37719211]
[1642500747013,4.14383551,137.49,137.45,10.48]
[1642500747415,4.14383551,137.49,137.46,0.25]
[1642500747615,4.14383551,137.49,137.47,46.49495967]
[1642500747815,5.44420588,137.53,137.47,46.49495967]
[1642500748621,5.44420588,137.53,137.46,83.09]
[1642500748821,0.25,137.52,137.46,83.35]
[1642500749424,5.44420588,137.53,137.47,0.25]
[1642500749623,7.05183551,137.53,137.48,10.48]
[1642500749823,4.14383551,137.53,137.49,0.25]
[1642500750023,4.14383551,137.53,137.5,10.48]
[1642500750825,4.14383551,137.53,137.5,50.29250971]
[1642500751023,4.14383551,137.53,137.5,10.48]
[1642500751224,4.14383551,137.54,137.5,10.48]
[1642500752424,8.28713192,137.54,137.5,10.48]
[1642500753326,4.14383551,137.54,137.5,10.48]
[1642500753527,4.14383551,137.56,137.5,10.48]
[1642500753829,0.25,137.55,137.5,10.48]
[1642500754430,4.39383551,137.55,137.5,10.48]
[1642500757935,4.14383551,137.55,137.5,10.48]
[1642500758135,4.14383551,137.55,137.5,10.74]
[1642500758337,4.14383551,137.55,137.51,0.25]
[1642500758634,5.81504634,137.58,137.53,27.0]
[1642500758837,4.14272581,137.57,137.54,10.73]
[1642500759036,4.14272581,137.57,137.55,128.22184166]
[1642500759235,5.81504634,137.58,137.56,10.73]